bitfinex-derivatives/quotes_SOLF0:USTF0_20240918
["timestamp","ask_amount","ask_price","bid_price","bid_amount"]
[1726629202058,9.32,132.13,132.09,9.32]
[1726629202264,4.4024,132.18,132.09,9.32]
[1726629202470,9.32,132.14,132.09,9.32]
[1726629202662,4.4024,132.18,132.09,9.32]
[1726629202862,3.7831,132.14,132.1,3.7838]
[1726629203163,13.1031,132.14,132.1,3.7838]
[1726629204067,13.1032,132.13,132.09,3.7843]
[1726629204458,13.1032,132.13,132.09,13.1043]
[1726629204668,4.4024,132.18,132.11,9.32]
[1726629204858,9.32,132.16,132.11,9.32]
[1726629205164,3.7828,132.15,132.12,3.7834]
[1726629206278,3.7828,132.15,132.11,9.32]
[1726629206665,13.1028,132.15,132.11,9.32]
[1726629207561,9.32,132.15,132.11,13.1036]
[1726629207761,3.7829,132.14,132.1,9.32]
[1726629208471,3.7829,132.14,132.1,13.1038]
[1726629210765,9.32,132.14,132.1,13.1038]
[1726629210962,9.32,132.14,132.11,3.7837]
[1726629211369,9.32,132.15,132.11,3.7837]
[1726629211774,9.32,132.15,132.09,3.7841]
[1726629212069,9.32,132.14,132.1,9.32]
[1726629212269,9.32,132.15,132.1,9.32]
[1726629212468,4.4024,132.18,132.11,3.7836]
[1726629212774,9.32,132.15,132.11,3.7836]
[1726629213276,3.783,132.14,132.11,3.7836]
[1726629214076,9.32,132.14,132.06,5.19453067]
[1726629214267,9.32,132.14,132.09,9.32]
[1726629214671,3.7829,132.14,132.11,3.7837]
[1726629214878,3.7829,132.14,132.11,13.1037]
[1726629215068,4.4024,132.18,132.13,9.32]
[1726629215376,4.4024,132.18,132.14,9.32]
[1726629215778,13.7224,132.18,132.13,13.103]
[1726629216367,13.7224,132.18,132.14,3.7828]
[1726629217579,3.7822,132.17,132.14,3.7828]
[1726629218179,3.7824,132.16,132.13,13.1031]
[1726629218376,9.32,132.16,132.07,1.4348]
[1726629218575,4.4024,132.18,132.11,3.7835]
[1726629218576,9.32,132.15,132.11,3.7835]
[1726629219076,9.32,132.15,132.11,9.32]
[1726629219574,13.1027,132.15,132.12,3.7834]
[1726629219877,9.32,132.15,132.11,9.32]
[1726629220084,3.7831,132.14,132.11,13.1035]
[1726629220982,13.1027,132.15,132.12,3.7833]
[1726629221182,3.7827,132.15,132.12,3.7833]
[1726629222373,3.7827,132.15,132.12,13.1033]
[1726629223582,3.7825,132.16,132.12,13.1033]
[1726629224783,3.7826,132.15,132.12,13.1033]
[1726629225184,4.4024,132.18,132.13,9.32]
[1726629225385,4.4024,132.18,132.16,9.32]
[1726629225582,2.9687,132.18,132.16,9.32]
[1726629226486,6.7505,132.18,132.16,9.32]
[1726629226984,6.7505,132.18,132.15,9.32]
[1726629228083,2.9687,132.18,132.15,13.1025]
[1726629228283,1.5022,132.18,132.16,9.32]
[1726629228889,3.7812,132.2,132.17,9.32]
[1726629230283,3.7812,132.2,132.17,13.102]
[1726629230780,3.781,132.21,132.17,13.102]
[1726629231788,3.7812,132.2,132.17,9.32]
[1726629231990,9.32,132.21,132.16,3.7822]
[1726629232189,9.32,132.21,132.17,9.32]
[1726629232389,3.7812,132.2,132.17,9.32]
[1726629232888,9.32,132.18,132.07,1.4348]
[1726629233089,9.32,132.11,132.07,9.32]
[1726629233293,9.32,132.11,132.08,9.32]
[1726629233494,9.32,132.12,132.08,9.32]
[1726629233888,14.53,132.14,132.07,3.7847]
[1726629234594,14.53,132.14,132.08,3.7845]
[1726629234995,3.7832,132.13,132.07,14.53]
[1726629235296,3.7832,132.13,132.09,3.7841]
[1726629235495,2.9666,132.17,132.07,18.27035161]
[1726629235496,14.53,132.16,132.07,18.27035161]
[1726629235890,3.783,132.14,132.07,18.27035161]
[1726629236092,3.783,132.14,132.09,14.53]
[1726629236688,1.4822,132.17,132.11,14.53]
[1726629237995,5.2644,132.17,132.13,3.7829]
[1726629239590,3.7823,132.16,132.13,3.7829]
[1726629240092,3.7823,132.16,132.12,3.7833]
[1726629240494,3.7826,132.15,132.12,3.7833]
[1726629241496,5.2645,132.17,132.13,3.7831]
[1726629241697,1.4822,132.17,132.13,3.7831]
[1726629241897,3.7825,132.16,132.09,18.2469819]
[1726629242694,16.0122,132.17,132.09,14.53]
[1726629242893,14.53,132.15,132.07,18.9819]
[1726629243395,14.53,132.15,132.08,3.75776715]
[1726629243595,3.7831,132.14,132.1,3.7839]
[1726629244598,3.7831,132.14,132.11,3.7837]
[1726629248297,1.4822,132.17,132.08,3.75776715]
[1726629248498,16.0122,132.17,132.12,3.7833]
[1726629248694,16.0122,132.17,132.1,3.7277719]
[1726629249095,3.7825,132.16,132.13,3.783]
[1726629249295,1.4223,132.2,132.11,14.53]
[1726629249497,3.7822,132.17,132.11,14.53]
[1726629250194,3.7822,132.17,132.14,3.7827]
[1726629250705,3.7823,132.16,132.13,3.783]
[1726629252705,3.7821,132.17,132.14,3.7827]
[1726629254406,3.7821,132.17,132.13,3.783]
[1726629254606,3.7823,132.16,132.13,3.783]
[1726629255203,1.4223,132.2,132.11,14.53]
[1726629255204,15.9523,132.2,132.11,14.53]
[1726629255408,3.7819,132.18,132.11,14.53]
[1726629257106,3.7819,132.18,132.14,3.7827]
[1726629257299,3.7821,132.17,132.14,3.7827]
[1726629257498,15.9523,132.2,132.14,3.7827]
[1726629258313,3.782,132.18,132.14,3.7827]
[1726629260020,3.7821,132.17,132.14,3.7827]
[1726629260616,3.7819,132.18,132.14,3.7827]
[1726629264933,3.7821,132.17,132.14,3.7827]
[1726629265925,13.0921,132.17,132.14,3.7827]
[1726629266923,1.4223,132.2,132.08,6.23681055]
[1726629266924,9.31,132.15,132.08,6.23681055]
[1726629267229,9.31,132.14,132.11,9.31]
[1726629267613,9.31,132.14,132.12,3.7833]
[1726629268421,9.31,132.15,132.12,3.7833]
[1726629269421,3.7824,132.16,132.13,3.7831]
[1726629270723,3.7819,132.18,132.15,3.7823]
[1726629271032,3.7819,132.18,132.14,9.31]
[1726629271820,13.0919,132.18,132.15,3.7825]
[1726629273028,9.31,132.18,132.15,3.7825]
[1726629273537,13.0915,132.19,132.15,13.0925]
[1726629273940,13.0915,132.19,132.16,3.7823]
[1726629276740,3.7815,132.19,132.16,3.7823]
[1726629277035,13.0915,132.19,132.16,3.7823]
[1726629277241,13.0915,132.19,132.15,3.7825]
[1726629278536,13.0915,132.19,132.14,13.18545488]
[1726629278537,13.0915,132.19,132.16,3.7822]
[1726629279526,3.7815,132.19,132.16,3.7822]
[1726629279735,13.0915,132.19,132.16,3.7822]
[1726629280232,9.31,132.19,132.17,3.7819]
[1726629280740,13.0915,132.19,132.16,3.7822]
[1726629281238,3.7815,132.19,132.16,3.7822]
[1726629282937,13.0915,132.19,132.16,3.7822]
[1726629283137,13.0915,132.19,132.15,3.7824]
[1726629283731,1.3974,132.21,132.14,3.7828]
[1726629283930,9.31,132.17,132.14,3.7828]
[1726629284935,9.31,132.15,132.13,3.7831]
[1726629285238,3.782,132.17,132.13,3.7831]
[1726629285540,9.31,132.16,132.13,3.7831]
[1726629288739,9.31,132.16,132.13,13.0931]
[1726629289541,13.092,132.17,132.13,13.0931]
[1726629289848,13.092,132.17,132.08,1.4108]
[1726629289849,3.7823,132.16,132.08,1.4108]
[1726629290144,3.7823,132.16,132.12,9.31]
[1726629291244,13.0923,132.16,132.12,9.31]
[1726629291745,13.0923,132.16,132.13,3.7832]
[1726629292250,3.7826,132.15,132.12,9.31]
[1726629292545,3.7826,132.15,132.12,13.0933]
[1726629292949,13.0924,132.16,132.12,13.0933]
[1726629293547,13.0924,132.16,132.13,3.7831]
[1726629298649,3.7824,132.16,132.13,3.7831]
[1726629300852,3.7824,132.16,132.13,9.31]
[1726629301453,3.7824,132.16,132.13,13.0931]
[1726629302354,3.7824,132.16,132.14,9.31]
[1726629303151,3.7824,132.16,132.13,13.0931]
[1726629306851,3.7824,132.16,132.13,3.7831]
[1726629307254,3.7824,132.16,132.13,13.0931]
[1726629309857,9.31,132.17,132.14,9.31]
[1726629309858,3.7821,132.17,132.14,9.31]
[1726629310068,3.7821,132.17,132.14,13.0928]
[1726629311361,3.7821,132.17,132.14,9.31]
[1726629311564,3.7821,132.17,132.13,13.093]
[1726629311565,3.7824,132.16,132.13,13.093]
[1726629312458,3.7824,132.16,132.14,9.31]
[1726629314061,3.7824,132.16,132.13,3.783]
[1726629314259,3.7824,132.16,132.14,9.31]
[1726629314860,3.77196013,132.2,132.14,13.0929]
[1726629315072,9.31,132.19,132.14,13.0929]
[1726629315360,3.782,132.18,132.14,13.0929]
[1726629315559,9.31,132.19,132.14,13.0929]
[1726629316451,13.0922,132.17,132.13,3.7831]
[1726629316659,13.0922,132.17,132.13,13.0931]
[1726629316858,13.0922,132.17,132.13,3.7831]
[1726629317050,13.0922,132.17,132.13,13.0931]
[1726629317761,3.7822,132.17,132.14,13.0929]
[1726629322363,3.7822,132.17,132.14,9.31]
[1726629325765,5.2968,132.18,132.15,9.31]
[1726629325959,3.77196013,132.2,132.16,9.31]
[1726629325960,9.31,132.2,132.16,9.31]
[1726629326169,2.8682,132.21,132.16,9.31]
[1726629326371,3.7816,132.19,132.16,9.31]
[1726629327761,3.7817,132.18,132.11,3.79798334]
[1726629327962,3.7817,132.18,132.14,9.31]
[1726629328159,3.782,132.17,132.14,9.31]
[1726629334265,3.782,132.17,132.13,13.093]
[1726629337075,3.782,132.17,132.14,13.0928]
[1726629338371,13.0918,132.18,132.14,13.0928]
[1726629340779,3.7818,132.18,132.15,3.7825]
[1726629340982,13.0916,132.19,132.15,3.7825]
[1726629341573,3.7817,132.18,132.15,3.7825]
[1726629343283,3.7816,132.19,132.15,13.0925]
[1726629343969,13.0916,132.19,132.15,13.0925]
[1726629344577,13.0916,132.19,132.15,3.7825]
[1726629344783,13.0916,132.19,132.15,13.0925]
[1726629346085,3.7818,132.18,132.15,13.0925]
[1726629346486,9.31,132.19,132.15,13.0925]
[1726629346687,13.0916,132.19,132.15,13.0925]
[1726629350396,9.31,132.18,132.15,3.7825]
[1726629351282,3.7816,132.19,132.15,3.7825]
[1726629351696,13.0916,132.19,132.15,3.7825]
[1726629355598,13.0916,132.19,132.15,13.0925]
[1726629357896,13.0916,132.19,132.16,3.7823]
[1726629358891,3.7816,132.19,132.15,13.0924]
[1726629359200,3.7818,132.18,132.15,9.31]
[1726629359493,9.31,132.2,132.16,9.31]
[1726629359698,3.7816,132.19,132.16,9.31]
[1726629361198,3.7818,132.18,132.15,13.0924]
[1726629362600,3.7818,132.18,132.15,9.31]
[1726629369903,3.7818,132.18,132.15,13.0925]
[1726629370306,9.31,132.16,132.09,17.33538531]
[1726629370508,9.31,132.14,132.09,9.31]
[1726629370907,3.7832,132.13,132.09,3.7841]
[1726629371102,9.31,132.13,132.07,3.77309441]
[1726629371311,9.31,132.13,132.08,9.31]
[1726629371710,9.31,132.11,132.07,9.31]
[1726629372312,3.7841,132.1,132.07,9.31]
[1726629372511,9.31,132.11,132.07,9.31]
[1726629372812,2.944,132.16,132.08,9.31]
[1726629373010,9.31,132.12,132.08,9.31]
[1726629373707,3.7837,132.11,132.08,9.31]
[1726629382421,3.7835,132.12,132.1,9.31]
[1726629383010,6.71000674,132.16,132.1,9.31]
[1726629383217,2.944,132.16,132.14,9.31]
[1726629383922,1.5213,132.16,132.14,9.31]
[1726629384425,5.3038,132.16,132.14,9.31]
[1726629385316,1.5213,132.16,132.12,9.31]
[1726629385723,1.5213,132.16,132.13,9.31]
[1726629386514,1.5213,132.16,132.14,9.31]
[1726629387820,1.5213,132.16,132.13,9.31]
[1726629388817,3.7826,132.15,132.13,9.31]
[1726629390818,5.3037,132.16,132.13,9.31]
[1726629391727,3.7826,132.15,132.13,9.31]
[1726629395832,10.8313,132.16,132.05,154.85240974]
[1726629396030,1.5213,132.16,132.13,9.31]
[1726629396724,1.5213,132.16,132.06,1.4931]
[1726629396725,1.5213,132.16,132.15,9.31]
[1726629397627,2.8966,132.17,132.15,9.31]
[1726629398034,1.4774,132.17,132.16,9.31]
[1726629398234,3.7817,132.19,132.16,9.31]
[1726629398428,3.7817,132.19,132.18,9.31]
[1726629400224,3.7817,132.18,132.14,3.7827]
[1726629400428,3.7817,132.18,132.17,9.31]
[1726629401738,3.7816,132.19,132.17,9.31]
[1726629402634,3.7812,132.2,132.17,9.31]
[1726629403538,9.31,132.19,132.13,3.82013699]
[1726629403730,9.31,132.19,132.11,1.3957]
[1726629403731,9.31,132.19,132.15,9.31]
[1726629403928,3.7822,132.17,132.14,9.31]
[1726629406729,3.7825,132.16,132.11,5.1793]
[1726629406936,3.7825,132.16,132.13,9.31]
[1726629407139,3.7825,132.16,132.11,5.1793]
[1726629407330,3.7825,132.16,132.13,9.31]
[1726629412738,3.7822,132.17,132.14,9.31]
[1726629414444,13.01269662,132.19,132.14,9.31]
[1726629414445,3.7818,132.18,132.14,9.31]
[1726629414952,2.8888,132.21,132.15,13.0925]
[1726629415143,12.1988,132.21,132.17,9.31]
[1726629415344,9.31,132.2,132.17,9.31]
[1726629415751,3.7816,132.19,132.17,9.31]
[1726629416852,3.7813,132.2,132.17,9.31]
[1726629420244,3.7817,132.19,132.15,9.31]
[1726629420442,1.4345,132.21,132.14,9.31]
[1726629420443,9.31,132.18,132.14,9.31]
[1726629420648,9.31,132.17,132.14,9.31]
[1726629424861,9.31,132.17,132.13,3.783]
[1726629424862,9.31,132.17,132.11,1.3957]
[1726629425064,9.31,132.17,132.13,9.31]
[1726629425861,13.0925,132.16,132.13,9.31]
[1726629426368,3.7827,132.15,132.12,9.31]
[1726629426563,13.0927,132.15,132.11,9.31]
[1726629427564,3.7829,132.14,132.11,9.31]
[1726629427759,3.7829,132.14,132.11,13.0937]
[1726629428459,3.7829,132.14,132.12,9.31]
[1726629429559,3.7829,132.14,132.13,9.31]
[1726629431068,3.7827,132.15,132.13,9.31]
[1726629433467,3.7827,132.15,132.12,9.31]
[1726629433666,3.7829,132.14,132.12,9.31]
[1726629433859,3.75066941,132.2,132.06,1.4926]
[1726629433860,9.31,132.15,132.06,1.4926]
[1726629434162,3.75066941,132.2,132.08,9.31]
[1726629434163,9.31,132.12,132.08,9.31]
[1726629434370,1.5229,132.14,132.08,9.31]
[1726629434559,9.31,132.11,132.08,9.31]
[1726629434758,9.31,132.11,132.07,3.7847]
[1726629434960,3.7843,132.09,132.05,5.1958]
[1726629435161,9.31,132.1,132.06,9.31]
[1726629436668,3.7844,132.09,132.06,9.31]
[1726629438474,3.7841,132.1,132.07,9.31]
[1726629439270,2.8599,132.13,132.07,9.31]
[1726629439472,9.31,132.12,132.08,9.31]
[1726629440277,9.31,132.11,132.07,9.31]
[1726629440472,9.31,132.11,132.03,149.63025215]
[1726629440670,13.0942,132.1,132.06,9.31]
[1726629441379,3.7847,132.08,132.03,3.7858]
[1726629441678,3.7847,132.08,132.05,9.31]
[1726629444777,3.7849,132.07,132.03,3.7859]
[1726629444977,3.7849,132.07,132.04,9.31]
[1726629445376,3.78646692,132.07,132.02,9.31]
[1726629445681,9.31,132.06,132.02,9.31]
[1726629446081,6.72962905,132.07,132.02,13.0962]
[1726629446281,16.03962905,132.07,132.02,13.0962]
[1726629446481,19.82482905,132.07,132.02,13.0962]
[1726629446683,16.03962905,132.07,132.02,13.0962]
[1726629447783,6.6721,132.07,132.04,9.31]
[1726629449581,6.6721,132.07,132.03,9.31]
[1726629450375,3.7852,132.06,132.03,9.31]
[1726629451189,3.7852,132.06,132.01,3.7865]
[1726629451585,13.0952,132.06,132.02,9.31]
[1726629452082,3.7856,132.05,132.02,9.31]
[1726629452478,9.31,132.06,131.99,3.7869]
[1726629452677,13.0957,132.05,132.01,9.31]
[1726629452883,9.31,132.05,132.01,9.31]
[1726629453082,1.4055,132.06,132.02,9.31]
[1726629453286,1.4055,132.06,132.03,9.31]
[1726629453685,3.7855,132.05,131.94,10.39907714]
[1726629453987,1.4055,132.06,131.94,2.8668]
[1726629454382,9.31,132.02,131.98,9.31]
[1726629454594,9.31,132.01,131.93,17.34079466]
[1726629454888,10.7844,132.01,131.96,9.31]
[1726629455077,3.787,132.0,131.96,9.31]
[1726629455787,14.5711,132.01,131.97,9.31]
[1726629455984,1.4744,132.01,131.98,9.31]
[1726629458184,5.2611,132.01,131.98,9.31]
[1726629459586,1.4744,132.01,131.98,9.31]
[1726629459894,1.4744,132.01,131.99,9.31]
[1726629460090,3.7861,132.03,132.0,9.31]
[1726629460293,9.31,132.03,131.92,1.4408]
[1726629460488,9.31,132.02,131.98,9.31]
[1726629460691,9.31,132.01,131.96,3.7878]
[1726629460892,9.31,132.02,131.98,9.31]
[1726629461495,13.0965,132.02,131.98,9.31]
[1726629461997,9.31,132.02,131.99,9.31]
[1726629462689,13.0964,132.02,131.99,9.31]
[1726629462894,9.31,132.02,131.99,9.31]
[1726629463087,1.4516,132.05,131.99,13.0971]
[1726629463290,9.31,132.03,131.99,13.0971]
[1726629463690,13.0961,132.03,131.99,9.31]
[1726629464490,13.0964,132.02,131.97,3.7876]
[1726629464804,9.31,132.01,131.97,9.31]
[1726629465107,13.0968,132.01,131.97,9.31]
[1726629471098,3.7864,132.02,131.98,9.31]
[1726629471298,13.0964,132.02,131.98,9.31]
[1726629474508,3.7867,132.01,131.98,9.31]
[1726629474707,13.0967,132.01,131.97,9.31]
[1726629475104,13.0967,132.01,131.97,13.0977]
[1726629477207,3.7867,132.01,131.98,9.31]
[1726629479109,13.0964,132.02,131.98,9.31]
[1726629480114,13.0964,132.02,131.98,3.7874]
[1726629480317,1.4516,132.05,132.0,9.31]
[1726629480513,9.31,132.04,132.0,9.31]
[1726629480810,9.31,132.04,132.01,9.31]
[1726629481210,9.31,132.04,132.0,9.31]
[1726629482016,3.7858,132.04,132.0,9.31]
[1726629482316,13.0958,132.04,132.0,9.31]
[1726629482614,3.786,132.03,131.98,3.7873]
[1726629482811,13.096,132.03,131.99,9.31]
[1726629483513,1.4516,132.05,132.01,9.31]
[1726629483715,15.14,132.07,132.02,9.31]
[1726629483910,24.45,132.07,132.02,9.31]
[1726629484115,24.45,132.07,132.04,9.31]
[1726629484609,9.31,132.05,132.01,9.31]
[1726629485416,9.31,132.05,132.02,9.31]
[1726629486016,3.76441005,132.07,132.02,9.31]
[1726629486218,9.31,132.06,132.02,9.31]
[1726629486411,3.83374946,132.07,132.02,9.31]
[1726629486609,9.31,132.06,132.02,9.31]
[1726629488118,13.0952,132.06,132.02,9.31]
[1726629488709,3.7848,132.08,132.02,13.0963]
[1726629488914,9.31,132.07,132.02,13.0963]
[1726629489416,13.095,132.07,132.02,13.0963]
[1726629490508,2.9162,132.11,132.02,9.31]
[1726629490509,9.31,132.05,132.02,9.31]
[1726629490711,9.31,132.05,132.01,9.31]
[1726629491221,9.31,132.05,132.01,13.0966]
[1726629491423,9.31,132.05,132.01,9.31]
[1726629491718,13.0958,132.04,131.99,13.097]
[1726629491919,9.31,132.03,131.99,13.097]
[1726629492218,13.0961,132.03,131.99,9.31]
[1726629493014,13.0961,132.03,131.99,13.0971]
[1726629495327,3.7863,132.02,131.99,13.0971]
[1726629497021,3.7866,132.01,131.99,9.31]
[1726629497724,3.7866,132.01,131.98,13.0973]
[1726629499126,3.7869,132.0,131.96,9.31]
[1726629499922,3.7872,131.99,131.96,9.31]
[1726629500128,9.31,132.01,131.96,9.31]
[1726629500524,3.7871,132.0,131.97,3.7877]
[1726629501823,9.31,132.01,131.97,3.7877]
[1726629502026,1.5082,132.04,131.99,9.31]
[1726629502219,9.31,132.03,131.99,9.31]
[1726629502420,3.7865,132.02,131.99,13.0971]
[1726629503224,13.0962,132.03,131.99,13.0971]
[1726629506331,13.0962,132.03,131.99,9.31]
[1726629506636,5.294,132.04,131.99,9.31]
[1726629506826,9.31,132.03,131.99,9.31]
[1726629507130,9.31,132.03,131.99,13.0971]
[1726629508934,9.31,132.03,132.0,3.7868]
[1726629513433,13.096,132.03,131.99,3.7871]
[1726629516336,10.8182,132.04,132.0,3.7866]
[1726629517030,9.31,132.03,132.0,3.7866]
[1726629521341,13.096,132.03,131.99,3.7871]
[1726629521534,9.31,132.02,131.99,3.7871]
[1726629524137,9.31,132.02,132.0,3.7869]
[1726629524343,1.5082,132.04,132.0,3.7869]
[1726629524344,9.31,132.03,132.0,3.7869]
[1726629525445,13.096,132.03,131.99,13.097]
[1726629526349,9.31,132.03,131.99,13.097]
[1726629527946,13.096,132.03,131.99,13.097]
[1726629530141,3.786,132.03,131.99,13.097]
[1726629530344,13.096,132.03,131.99,13.097]
[1726629532942,9.31,132.03,132.0,13.0968]
[1726629533150,13.0959,132.04,132.0,13.0968]
[1726629534349,9.31,132.04,132.01,13.0965]
[1726629536751,9.31,132.04,132.01,3.7865]
[1726629536945,13.0958,132.04,132.0,13.0968]
[1726629537151,9.31,132.03,131.98,9.31]
[1726629537343,9.31,132.02,131.98,9.31]
[1726629537549,9.31,132.02,131.99,3.787]
[1726629538645,13.0962,132.03,131.99,3.787]
[1726629538845,13.0962,132.03,131.99,13.097]
[1726629539848,2.9545,132.05,132.0,13.0967]
[1726629539849,13.0959,132.04,132.0,13.0967]
[1726629540555,9.31,132.03,132.0,3.7867]
[1726629541356,13.096,132.03,131.99,13.097]
[1726629545256,3.7863,132.02,131.99,3.787]
[1726629545659,13.0963,132.02,131.98,3.7874]
[1726629545853,9.31,132.0,131.93,17.3511032]
[1726629546059,9.31,132.0,131.96,9.31]
[1726629546252,13.097,132.0,131.92,2.9804]
[1726629546453,13.097,132.0,131.96,9.31]
[1726629546654,13.097,132.0,131.96,3.7879]
[1726629546954,9.31,131.99,131.94,9.31]
[1726629547162,9.31,131.97,131.93,9.31]
[1726629547452,9.31,131.97,131.93,3.7887]
[1726629547846,13.0979,131.97,131.93,3.7887]
[1726629549768,3.788,131.96,131.93,3.7887]
[1726629550260,3.788,131.96,131.92,3.7891]
[1726629550449,9.31,131.95,131.92,13.0991]
[1726629551261,9.31,131.94,131.91,9.31]
[1726629551862,13.0987,131.94,131.91,9.31]
[1726629552169,9.31,131.93,131.89,9.31]
[1726629552460,13.0989,131.93,131.89,13.0999]
[1726629552662,9.31,131.93,131.89,13.0999]
[1726629553354,4.3282,131.97,131.89,9.31]
[1726629553355,13.0992,131.92,131.89,9.31]
[1726629553863,13.0992,131.92,131.88,3.7903]
[1726629555260,13.0992,131.92,131.89,3.79]
[1726629555763,3.7892,131.92,131.89,3.79]
[1726629557166,3.7892,131.92,131.89,13.1]
[1726629557360,13.0992,131.92,131.89,9.31]
[1726629557566,3.7895,131.91,131.88,3.7902]
[1726629558264,13.0993,131.92,131.88,3.7902]
[1726629558463,9.31,131.91,131.87,13.1005]
[1726629558759,3.7898,131.9,131.87,3.7905]
[1726629559065,13.0998,131.9,131.86,13.1007]
[1726629559566,3.7901,131.89,131.85,13.1011]
[1726629559766,9.31,131.88,131.85,3.7911]
[1726629560064,9.31,131.87,131.84,3.7914]
[1726629560456,3.7907,131.87,131.84,3.7914]
[1726629560657,13.1007,131.87,131.84,3.7914]
[1726629560857,13.1007,131.87,131.83,13.1017]
[1726629561064,4.351,131.89,131.78,2.8491]
[1726629561260,9.31,131.86,131.82,9.31]
[1726629561466,13.1011,131.86,131.82,13.1019]
[1726629561763,13.1011,131.86,131.82,3.7919]
[1726629562068,9.31,131.86,131.81,9.31]
[1726629562260,4.351,131.89,131.83,9.31]
[1726629562565,9.31,131.87,131.83,9.31]
[1726629562968,13.1009,131.87,131.83,13.1017]
[1726629563355,9.31,131.86,131.83,3.7917]
[1726629564765,9.31,131.86,131.82,9.31]
[1726629564766,13.101,131.86,131.82,13.1019]
[1726629567370,9.31,131.85,131.82,3.7919]
[1726629569771,9.31,131.85,131.82,13.1019]
[1726629570467,13.1006,131.87,131.83,3.7917]
[1726629578883,8.20648254,131.89,131.84,13.1014]
[1726629578884,13.1004,131.88,131.84,13.1014]
[1726629579079,9.31,131.87,131.84,13.1014]
[1726629579288,9.31,131.87,131.84,9.31]
[1726629579489,9.31,131.87,131.83,9.31]
[1726629579888,4.351,131.89,131.84,9.31]
[1726629580086,2.8762,131.89,131.85,9.31]
[1726629581890,1.4572,131.89,131.86,13.1008]
[1726629582088,9.31,131.91,131.86,9.31]
[1726629583189,13.0997,131.91,131.86,9.31]
[1726629583991,3.7898,131.9,131.86,13.1007]
[1726629584391,13.0998,131.9,131.86,13.1007]
[1726629584592,13.0998,131.9,131.86,3.7907]
[1726629584790,13.1001,131.89,131.85,13.1011]
[1726629589893,3.7904,131.88,131.85,13.1011]
[1726629593294,3.7904,131.88,131.85,3.7911]
[1726629593592,9.31,131.89,131.85,9.31]
[1726629594796,3.7904,131.88,131.85,13.1012]
[1726629597292,3.7901,131.89,131.86,3.7908]
[1726629597693,9.31,131.92,131.88,9.31]
[1726629598098,9.31,131.92,131.89,9.31]
[1726629598604,13.7445,131.93,131.89,9.31]
[1726629599702,17.5335,131.93,131.89,13.0999]
[1726629605099,17.5335,131.93,131.89,9.31]
[1726629605599,3.7892,131.92,131.89,9.31]
[1726629605903,4.4345,131.93,131.89,13.0999]
[1726629606100,13.7445,131.93,131.89,13.0999]
[1726629606508,17.5335,131.93,131.89,13.0999]